[Event "January 2 Early 2024"]
[Site "https://www.chess.com"]
[Date "2024.01.02"]
[Round "4"]
[White "Roberson, Peter T"]
[Black "Boruchovsky, Avital"]
[Result "0-1"]
[Board "55"]
[TimeControl "180+1"]
[WhiteFideId "412384"]
[BlackFideId "2800055"]
[WhiteElo "2569"]
[BlackElo "2822"]
[WhiteTeam "ENG"]
[BlackTeam "ISR"]
[WhiteClock "0:00:15"]
[BlackClock "0:00:57"]

1. b3 {[%clk 0:03:00]}  d5 {[%clk 0:02:42]} 2. Bb2 {[%clk 0:03:01]}  Nd7 {[%clk 0:02:39]} 3. Nf3 {[%clk 0:03:00]}  Ngf6 {[%clk 0:02:37]} 4. g3 {[%clk 0:02:58]}  c5 {[%clk 0:02:37]} 5. Bg2 {[%clk 0:02:58]}  b6 {[%clk 0:02:37]} 6. O-O {[%clk 0:02:59]}  Bb7 {[%clk 0:02:38]} 7. d4 {[%clk 0:02:56]}  cxd4 {[%clk 0:02:35]} 8. Qxd4 {[%clk 0:02:55]}  e6 {[%clk 0:02:34]} 9. c4 {[%clk 0:02:55]}  Bc5 {[%clk 0:02:34]} 10. Qh4 {[%clk 0:02:55]}  dxc4 {[%clk 0:02:30]} 11. bxc4 {[%clk 0:02:45]}  O-O {[%clk 0:02:30]} 12. Rd1 {[%clk 0:02:45]}  Ne4 {[%clk 0:02:25]} 13. Nd4 {[%clk 0:02:14]}  Qxh4 {[%clk 0:02:22]} 14. gxh4 {[%clk 0:02:15]}  Ndf6 {[%clk 0:02:20]} 15. f3 {[%clk 0:02:00]}  Nd6 {[%clk 0:02:09]} 16. Ba3 {[%clk 0:01:56]}  Nxc4 {[%clk 0:02:07]} 17. Bxc5 {[%clk 0:01:56]}  bxc5 {[%clk 0:02:08]} 18. Nb3 {[%clk 0:01:56]}  Ne3 {[%clk 0:02:02]} 19. Rc1 {[%clk 0:01:55]}  c4 {[%clk 0:02:01]} 20. Na5 {[%clk 0:01:56]}  Ba6 {[%clk 0:01:59]} 21. Na3 {[%clk 0:01:54]}  Rac8 {[%clk 0:01:58]} 22. Kf2 {[%clk 0:01:54]}  Nfd5 {[%clk 0:01:56]} 23. Rab1 {[%clk 0:01:41]}  c3 {[%clk 0:01:52]} 24. Nc2 {[%clk 0:01:36]}  Nxg2 {[%clk 0:01:50]} 25. Kxg2 {[%clk 0:01:36]}  Nf4+ {[%clk 0:01:45]} 26. Kf2 {[%clk 0:01:34]}  Nxe2 {[%clk 0:01:42]} 27. Rd1 {[%clk 0:01:32]}  Nf4 {[%clk 0:01:42]} 28. Rd6 {[%clk 0:01:28]}  Bd3 {[%clk 0:01:42]} 29. Rc1 {[%clk 0:01:28]}  Bg6 {[%clk 0:01:40]} 30. Nb4 {[%clk 0:01:22]}  Rb8 {[%clk 0:01:29]} 31. Nac6 {[%clk 0:01:18]}  Rb6 {[%clk 0:01:22]} 32. Rxc3 {[%clk 0:01:06]}  h5 {[%clk 0:01:22]} 33. Ne7+ {[%clk 0:00:57]}  Kh7 {[%clk 0:01:22]} 34. Rxb6 {[%clk 0:00:58]}  axb6 {[%clk 0:01:22]} 35. Rc6 {[%clk 0:00:52]}  b5 {[%clk 0:01:18]} 36. Nxg6 {[%clk 0:00:51]}  Kxg6 {[%clk 0:01:19]} 37. Rc5 {[%clk 0:00:50]}  Rb8 {[%clk 0:01:05]} 38. Ke3 {[%clk 0:00:50]}  Ng2+ {[%clk 0:01:06]} 39. Kd4 {[%clk 0:00:44]}  Nxh4 {[%clk 0:01:06]} 40. Nc6 {[%clk 0:00:43]}  Ra8 {[%clk 0:01:06]} 41. Ne5+ {[%clk 0:00:40]}  Kf6 {[%clk 0:01:05]} 42. Rxb5 {[%clk 0:00:29]}  Nf5+ {[%clk 0:01:01]} 43. Kd3 {[%clk 0:00:24]}  Ra3+ {[%clk 0:00:59]} 44. Kc4 {[%clk 0:00:15]}  Nd6+ {[%clk 0:00:57]} 0-1

[Event "January 2 Early 2024"]
[Site "https://www.chess.com"]
[Date "2024.01.02"]
[Round "4"]
[White "Korchynskyi, Mykola"]
[Black "Narayanan, Srinath"]
[Result "0-1"]
[Board "56"]
[TimeControl "180+1"]
[WhiteFideId "34138005"]
[BlackFideId "5018420"]
[WhiteElo "2564"]
[BlackElo "2821"]
[WhiteTeam "UKR"]
[BlackTeam "IND"]
[WhiteClock "0:00:02"]
[BlackClock "0:00:09"]

1. d4 {[%clk 0:02:52]}  Nf6 {[%clk 0:02:59]} 2. c4 {[%clk 0:02:52]}  c5 {[%clk 0:02:55]} 3. d5 {[%clk 0:02:52]}  g6 {[%clk 0:02:56]} 4. Nc3 {[%clk 0:02:51]}  Bg7 {[%clk 0:02:56]} 5. e4 {[%clk 0:02:48]}  O-O {[%clk 0:02:56]} 6. Nf3 {[%clk 0:02:45]}  e6 {[%clk 0:02:55]} 7. Bd3 {[%clk 0:02:44]}  exd5 {[%clk 0:02:55]} 8. cxd5 {[%clk 0:02:45]}  d6 {[%clk 0:02:55]} 9. O-O {[%clk 0:02:44]}  a6 {[%clk 0:02:54]} 10. Bf4 {[%clk 0:02:43]}  Bg4 {[%clk 0:02:53]} 11. h3 {[%clk 0:02:40]}  Bxf3 {[%clk 0:02:53]} 12. Qxf3 {[%clk 0:02:41]}  Qe7 {[%clk 0:02:53]} 13. Rfe1 {[%clk 0:02:32]}  Nbd7 {[%clk 0:02:53]} 14. a4 {[%clk 0:02:21]}  Nh5 {[%clk 0:02:45]} 15. Bh2 {[%clk 0:02:20]}  Ne5 {[%clk 0:02:45]} 16. Qd1 {[%clk 0:02:19]}  Qg5 {[%clk 0:02:30]} 17. Re3 {[%clk 0:01:52]}  Rab8 {[%clk 0:02:20]} 18. Ne2 {[%clk 0:01:44]}  Nxd3 {[%clk 0:02:06]} 19. Qxd3 {[%clk 0:01:45]}  Bxb2 {[%clk 0:02:06]} 20. f4 {[%clk 0:01:04]}  Qd8 {[%clk 0:01:18]} 21. Rb1 {[%clk 0:00:55]}  Bh8 {[%clk 0:01:17]} 22. e5 {[%clk 0:00:55]}  Ng7 {[%clk 0:01:16]} 23. Ng3 {[%clk 0:00:51]}  Qc7 {[%clk 0:01:06]} 24. e6 {[%clk 0:00:40]}  c4 {[%clk 0:01:03]} 25. Qe4 {[%clk 0:00:33]}  f5 {[%clk 0:01:00]} 26. Qc2 {[%clk 0:00:27]}  Ne8 {[%clk 0:00:58]} 27. e7 {[%clk 0:00:15]}  Rf7 {[%clk 0:00:58]} 28. Re6 {[%clk 0:00:15]}  b5 {[%clk 0:00:49]} 29. axb5 {[%clk 0:00:14]}  axb5 {[%clk 0:00:50]} 30. Rbe1 {[%clk 0:00:14]}  b4 {[%clk 0:00:50]} 31. h4 {[%clk 0:00:13]}  b3 {[%clk 0:00:50]} 32. Qe2 {[%clk 0:00:09]}  b2 {[%clk 0:00:50]} 33. h5 {[%clk 0:00:09]}  b1=Q {[%clk 0:00:35]} 34. hxg6 {[%clk 0:00:10]}  hxg6 {[%clk 0:00:23]} 35. Rxb1 {[%clk 0:00:09]}  Rxb1+ {[%clk 0:00:22]} 36. Nf1 {[%clk 0:00:10]}  Bg7 {[%clk 0:00:15]} 37. Bg3 {[%clk 0:00:04]}  c3 {[%clk 0:00:13]} 38. Qc2 {[%clk 0:00:04]}  Qa7+ {[%clk 0:00:12]} 39. Kh2 {[%clk 0:00:03]}  Rxf1 {[%clk 0:00:12]} 40. Qxc3 {[%clk 0:00:01]}  Bxc3 {[%clk 0:00:09]} 41. Kh3 {[%clk 0:00:02]} 0-1

[Event "January 2 Early 2024"]
[Site "https://www.chess.com"]
[Date "2024.01.02"]
[Round "4"]
[White "Bologan, Victor"]
[Black "Sharapov, Evgeny"]
[Result "1-0"]
[Board "59"]
[TimeControl "180+1"]
[WhiteFideId "13900048"]
[BlackFideId "14103133"]
[WhiteElo "2804"]
[BlackElo "2556"]
[WhiteTeam "MDA"]
[BlackTeam "UKR"]
[WhiteClock "0:01:04"]
[BlackClock "0:01:20"]

1. e4 {[%clk 0:03:00]}  c6 {[%clk 0:03:00]} 2. d4 {[%clk 0:03:00]}  d5 {[%clk 0:03:00]} 3. e5 {[%clk 0:03:00]}  c5 {[%clk 0:03:00]} 4. Nf3 {[%clk 0:02:59]}  Nc6 {[%clk 0:02:58]} 5. dxc5 {[%clk 0:02:52]}  e6 {[%clk 0:02:58]} 6. Bd3 {[%clk 0:02:48]}  Bxc5 {[%clk 0:02:57]} 7. O-O {[%clk 0:02:48]}  Nge7 {[%clk 0:02:57]} 8. Nbd2 {[%clk 0:02:37]}  a5 {[%clk 0:02:57]} 9. a4 {[%clk 0:02:36]}  Ng6 {[%clk 0:02:56]} 10. Nb3 {[%clk 0:02:36]}  Be7 {[%clk 0:02:56]} 11. Qe2 {[%clk 0:02:32]}  O-O {[%clk 0:02:55]} 12. Re1 {[%clk 0:02:26]}  Nb4 {[%clk 0:02:54]} 13. Bxg6 {[%clk 0:02:25]}  fxg6 {[%clk 0:02:54]} 14. Nfd4 {[%clk 0:02:22]}  Bd7 {[%clk 0:02:52]} 15. c3 {[%clk 0:02:13]}  Nc6 {[%clk 0:02:52]} 16. Nxc6 {[%clk 0:02:12]}  bxc6 {[%clk 0:02:51]} 17. Be3 {[%clk 0:02:11]}  Rb8 {[%clk 0:02:50]} 18. Nc5 {[%clk 0:02:10]}  Rf5 {[%clk 0:02:43]} 19. Bd4 {[%clk 0:02:07]}  Bc8 {[%clk 0:02:37]} 20. Rab1 {[%clk 0:02:04]}  h5 {[%clk 0:02:36]} 21. b4 {[%clk 0:02:03]}  axb4 {[%clk 0:02:33]} 22. cxb4 {[%clk 0:02:03]}  Ra8 {[%clk 0:02:32]} 23. Ra1 {[%clk 0:01:59]}  h4 {[%clk 0:02:30]} 24. h3 {[%clk 0:01:58]}  Bxc5 {[%clk 0:02:23]} 25. Bxc5 {[%clk 0:01:57]}  Ba6 {[%clk 0:02:23]} 26. b5 {[%clk 0:01:55]}  cxb5 {[%clk 0:02:23]} 27. axb5 {[%clk 0:01:55]}  Bb7 {[%clk 0:02:23]} 28. Bd4 {[%clk 0:01:53]}  Rxa1 {[%clk 0:02:20]} 29. Rxa1 {[%clk 0:01:52]}  Rf4 {[%clk 0:02:19]} 30. Qd3 {[%clk 0:01:50]}  Rf5 {[%clk 0:02:09]} 31. Ra7 {[%clk 0:01:44]}  Qc7 {[%clk 0:02:03]} 32. Qc3 {[%clk 0:01:41]}  Qxc3 {[%clk 0:02:02]} 33. Bxc3 {[%clk 0:01:41]}  Rf7 {[%clk 0:02:03]} 34. Bd4 {[%clk 0:01:40]}  Kf8 {[%clk 0:02:01]} 35. f3 {[%clk 0:01:40]}  Ke8 {[%clk 0:02:01]} 36. Bf2 {[%clk 0:01:38]}  Kd8 {[%clk 0:01:48]} 37. Bxh4+ {[%clk 0:01:37]}  Kc8 {[%clk 0:01:48]} 38. Bf2 {[%clk 0:01:36]}  Rc7 {[%clk 0:01:46]} 39. Ra1 {[%clk 0:01:34]}  Rc2 {[%clk 0:01:43]} 40. h4 {[%clk 0:01:27]}  Kd7 {[%clk 0:01:43]} 41. Bd4 {[%clk 0:01:24]}  Rc4 {[%clk 0:01:43]} 42. Rd1 {[%clk 0:01:23]}  Rb4 {[%clk 0:01:43]} 43. b6 {[%clk 0:01:23]}  Kc6 {[%clk 0:01:42]} 44. Kf2 {[%clk 0:01:23]}  Rc4 {[%clk 0:01:42]} 45. Ke3 {[%clk 0:01:22]}  Ba6 {[%clk 0:01:42]} 46. Ra1 {[%clk 0:01:21]}  Kb7 {[%clk 0:01:42]} 47. g4 {[%clk 0:01:19]}  Rc2 {[%clk 0:01:41]} 48. Kf4 {[%clk 0:01:15]}  Rc4 {[%clk 0:01:37]} 49. Rd1 {[%clk 0:01:14]}  Ra4 {[%clk 0:01:34]} 50. Kg5 {[%clk 0:01:10]}  Ra3 {[%clk 0:01:34]} 51. Kxg6 {[%clk 0:01:06]}  Rxf3 {[%clk 0:01:33]} 52. Kxg7 {[%clk 0:01:05]}  Rf4 {[%clk 0:01:31]} 53. g5 {[%clk 0:01:05]}  Rxh4 {[%clk 0:01:20]} 54. g6 {[%clk 0:01:04]} 1-0

[Event "January 2 Early 2024"]
[Site "https://www.chess.com"]
[Date "2024.01.02"]
[Round "4"]
[White "Ismayil, Malak"]
[Black "ilqar_74"]
[Result "0-1"]
[Board "61"]
[TimeControl "180+1"]
[WhiteFideId "13412604"]
[WhiteElo "2551"]
[BlackElo "2795"]
[WhiteTeam "AZE"]
[WhiteClock "0:00:00"]
[BlackClock "0:00:24"]

1. e4 {[%clk 0:03:00]}  c5 {[%clk 0:03:00]} 2. Nf3 {[%clk 0:03:00]}  d6 {[%clk 0:03:01]} 3. Bb5+ {[%clk 0:03:00]}  Bd7 {[%clk 0:03:00]} 4. Bxd7+ {[%clk 0:02:59]}  Qxd7 {[%clk 0:03:01]} 5. c4 {[%clk 0:02:59]}  e5 {[%clk 0:03:01]} 6. Nc3 {[%clk 0:02:56]}  Nf6 {[%clk 0:03:02]} 7. d3 {[%clk 0:02:54]}  h6 {[%clk 0:03:02]} 8. a3 {[%clk 0:02:53]}  Nc6 {[%clk 0:03:02]} 9. Rb1 {[%clk 0:02:42]}  Nd4 {[%clk 0:03:01]} 10. b4 {[%clk 0:02:38]}  b6 {[%clk 0:02:59]} 11. bxc5 {[%clk 0:02:34]}  bxc5 {[%clk 0:02:59]} 12. Nxd4 {[%clk 0:02:34]}  cxd4 {[%clk 0:02:58]} 13. Nd5 {[%clk 0:02:27]}  Nxd5 {[%clk 0:02:57]} 14. cxd5 {[%clk 0:02:28]}  Be7 {[%clk 0:02:56]} 15. Bd2 {[%clk 0:02:27]}  O-O {[%clk 0:02:54]} 16. O-O {[%clk 0:02:27]}  Rfc8 {[%clk 0:02:54]} 17. f4 {[%clk 0:02:26]}  Bf6 {[%clk 0:02:53]} 18. fxe5 {[%clk 0:02:22]}  Bxe5 {[%clk 0:02:53]} 19. Rf5 {[%clk 0:01:41]}  Rc7 {[%clk 0:02:44]} 20. Qg4 {[%clk 0:01:38]}  Kh7 {[%clk 0:02:39]} 21. Rbf1 {[%clk 0:01:30]}  Rf8 {[%clk 0:02:29]} 22. Qh5 {[%clk 0:01:23]}  f6 {[%clk 0:02:23]} 23. Qh4 {[%clk 0:01:14]}  Rc2 {[%clk 0:02:19]} 24. Bc1 {[%clk 0:01:08]}  Rfc8 {[%clk 0:02:12]} 25. Bf4 {[%clk 0:00:51]}  Re2 {[%clk 0:01:19]} 26. Bxe5 {[%clk 0:00:29]}  dxe5 {[%clk 0:01:17]} 27. h3 {[%clk 0:00:24]}  Rcc2 {[%clk 0:01:15]} 28. R5f2 {[%clk 0:00:24]}  Rcd2 {[%clk 0:01:05]} 29. Qg3 {[%clk 0:00:17]}  Re3 {[%clk 0:00:53]} 30. Rf3 {[%clk 0:00:14]}  Rdxd3 {[%clk 0:00:51]} 31. Kh2 {[%clk 0:00:09]}  Rc3 {[%clk 0:00:45]} 32. Rxe3 {[%clk 0:00:05]}  Rxe3 {[%clk 0:00:43]} 33. Qh4 {[%clk 0:00:05]}  Qf7 {[%clk 0:00:42]} 34. Qg4 {[%clk 0:00:05]}  Rc3 {[%clk 0:00:27]} 35. Qf5+ {[%clk 0:00:03]}  Qg6 {[%clk 0:00:23]} 36. Qxg6+ {[%clk 0:00:01]}  Kxg6 {[%clk 0:00:24]} 37. Rc1 {[%clk 0:00:00]}  Rxc1 {[%clk 0:00:24]} 0-1

[Event "January 2 Early 2024"]
[Site "https://www.chess.com"]
[Date "2024.01.02"]
[Round "4"]
[White "Anuj Shrivatri"]
[Black "Kambrath, Yannick"]
[Result "1-0"]
[Board "63"]
[TimeControl "180+1"]
[WhiteFideId "35070924"]
[BlackFideId "20632525"]
[WhiteElo "2782"]
[BlackElo "2546"]
[WhiteTeam "IND"]
[BlackTeam "FRA"]
[WhiteClock "0:00:10"]
[BlackClock "0:00:05"]

1. e4 {[%clk 0:02:55]}  e5 {[%clk 0:03:00]} 2. Nf3 {[%clk 0:02:54]}  Nc6 {[%clk 0:03:00]} 3. Bb5 {[%clk 0:02:54]}  a6 {[%clk 0:02:59]} 4. Ba4 {[%clk 0:02:54]}  Nf6 {[%clk 0:02:58]} 5. d3 {[%clk 0:02:51]}  b5 {[%clk 0:02:54]} 6. Bb3 {[%clk 0:02:51]}  Bb7 {[%clk 0:02:53]} 7. a4 {[%clk 0:02:45]}  Be7 {[%clk 0:02:46]} 8. O-O {[%clk 0:02:42]}  O-O {[%clk 0:02:46]} 9. Nc3 {[%clk 0:02:39]}  Nd4 {[%clk 0:02:36]} 10. Nxd4 {[%clk 0:02:19]}  exd4 {[%clk 0:02:37]} 11. Ne2 {[%clk 0:02:18]}  c5 {[%clk 0:02:30]} 12. e5 {[%clk 0:02:16]}  Nd5 {[%clk 0:02:13]} 13. Nxd4 {[%clk 0:01:58]}  bxa4 {[%clk 0:01:25]} 14. Bxd5 {[%clk 0:01:35]}  Bxd5 {[%clk 0:01:24]} 15. Nf5 {[%clk 0:01:36]}  Bc6 {[%clk 0:01:15]} 16. Qg4 {[%clk 0:00:55]}  g6 {[%clk 0:01:05]} 17. Re1 {[%clk 0:00:55]}  Re8 {[%clk 0:00:54]} 18. Bd2 {[%clk 0:00:26]}  Bf8 {[%clk 0:00:45]} 19. Bc3 {[%clk 0:00:24]}  d5 {[%clk 0:00:25]} 20. Nd6 {[%clk 0:00:17]}  Re6 {[%clk 0:00:15]} 21. d4 {[%clk 0:00:16]}  c4 {[%clk 0:00:14]} 22. Nf5 {[%clk 0:00:13]}  Bd7 {[%clk 0:00:14]} 23. Qg3 {[%clk 0:00:12]}  Rb8 {[%clk 0:00:13]} 24. Ne3 {[%clk 0:00:12]}  Reb6 {[%clk 0:00:13]} 25. Nxd5 {[%clk 0:00:12]}  Rxb2 {[%clk 0:00:07]} 26. Nf6+ {[%clk 0:00:13]}  Kg7 {[%clk 0:00:06]} 27. d5 {[%clk 0:00:13]}  Rxc2 {[%clk 0:00:05]} 28. e6 {[%clk 0:00:13]}  Rxc3 {[%clk 0:00:06]} 29. Qxc3 {[%clk 0:00:13]}  Qxf6 {[%clk 0:00:06]} 30. Qxf6+ {[%clk 0:00:11]}  Kxf6 {[%clk 0:00:07]} 31. exd7 {[%clk 0:00:12]}  a3 {[%clk 0:00:06]} 32. Re8 {[%clk 0:00:11]}  a2 {[%clk 0:00:06]} 33. Rxb8 {[%clk 0:00:11]}  c3 {[%clk 0:00:05]} 34. d8=Q+ {[%clk 0:00:10]} 1-0

[Event "January 2 Early 2024"]
[Site "https://www.chess.com"]
[Date "2024.01.02"]
[Round "4"]
[White "Suyarov, Mukhammadzokhid"]
[Black "Timerkhanov, Alexander"]
[Result "1-0"]
[Board "64"]
[TimeControl "180+1"]
[WhiteFideId "14210495"]
[BlackFideId "24177938"]
[WhiteElo "2777"]
[BlackElo "2646"]
[WhiteTeam "UZB"]
[BlackTeam "RUS"]
[WhiteClock "0:00:06"]
[BlackClock "0:00:11"]

1. d4 {[%clk 0:02:56]}  d5 {[%clk 0:02:59]} 2. Nc3 {[%clk 0:02:56]}  c6 {[%clk 0:03:00]} 3. Bf4 {[%clk 0:02:53]}  Nf6 {[%clk 0:02:59]} 4. e3 {[%clk 0:02:52]}  g6 {[%clk 0:02:57]} 5. h4 {[%clk 0:02:49]}  h5 {[%clk 0:02:56]} 6. Nf3 {[%clk 0:02:48]}  Bg7 {[%clk 0:02:56]} 7. Ne5 {[%clk 0:02:47]}  Nbd7 {[%clk 0:02:54]} 8. Nxd7 {[%clk 0:02:45]}  Bxd7 {[%clk 0:02:53]} 9. Be2 {[%clk 0:02:43]}  b5 {[%clk 0:02:43]} 10. Bf3 {[%clk 0:02:42]}  Bf5 {[%clk 0:02:42]} 11. O-O {[%clk 0:02:31]}  O-O {[%clk 0:02:41]} 12. Re1 {[%clk 0:02:30]}  e6 {[%clk 0:02:21]} 13. Be5 {[%clk 0:02:17]}  b4 {[%clk 0:02:10]} 14. Na4 {[%clk 0:02:14]}  Ne4 {[%clk 0:02:10]} 15. Bxg7 {[%clk 0:02:09]}  Kxg7 {[%clk 0:02:11]} 16. g3 {[%clk 0:01:59]}  Qd6 {[%clk 0:02:07]} 17. Rc1 {[%clk 0:01:53]}  g5 {[%clk 0:01:55]} 18. Bxe4 {[%clk 0:01:26]}  Bxe4 {[%clk 0:01:55]} 19. Qxh5 {[%clk 0:01:26]}  gxh4 {[%clk 0:01:55]} 20. Qg5+ {[%clk 0:01:07]}  Bg6 {[%clk 0:01:55]} 21. Kg2 {[%clk 0:01:01]}  hxg3 {[%clk 0:01:50]} 22. Rh1 {[%clk 0:00:57]}  Rh8 {[%clk 0:01:48]} 23. Qxg3 {[%clk 0:00:46]}  Qxg3+ {[%clk 0:01:40]} 24. Kxg3 {[%clk 0:00:46]}  Rxh1 {[%clk 0:01:38]} 25. Rxh1 {[%clk 0:00:46]}  Bxc2 {[%clk 0:01:39]} 26. Nc5 {[%clk 0:00:46]}  a5 {[%clk 0:01:22]} 27. Kf4 {[%clk 0:00:44]}  a4 {[%clk 0:01:19]} 28. Ke5 {[%clk 0:00:41]}  a3 {[%clk 0:01:18]} 29. b3 {[%clk 0:00:41]}  Rh8 {[%clk 0:01:12]} 30. Rg1+ {[%clk 0:00:30]}  Bg6 {[%clk 0:01:12]} 31. Na6 {[%clk 0:00:29]}  Kf8 {[%clk 0:01:05]} 32. Kd6 {[%clk 0:00:25]}  Rh2 {[%clk 0:01:04]} 33. Nxb4 {[%clk 0:00:23]}  Rxf2 {[%clk 0:01:04]} 34. Kxc6 {[%clk 0:00:20]}  Re2 {[%clk 0:00:59]} 35. Kb5 {[%clk 0:00:18]}  Rxe3 {[%clk 0:00:58]} 36. Ka4 {[%clk 0:00:18]}  Re4 {[%clk 0:00:56]} 37. Nc6 {[%clk 0:00:18]}  Re2 {[%clk 0:00:44]} 38. Kxa3 {[%clk 0:00:18]}  Bc2 {[%clk 0:00:38]} 39. Ne5 {[%clk 0:00:16]}  f5 {[%clk 0:00:36]} 40. Rg6 {[%clk 0:00:15]}  Ke7 {[%clk 0:00:30]} 41. Rg7+ {[%clk 0:00:15]}  Kf6 {[%clk 0:00:31]} 42. Rg6+ {[%clk 0:00:14]}  Ke7 {[%clk 0:00:30]} 43. Rg7+ {[%clk 0:00:12]}  Kf8 {[%clk 0:00:31]} 44. Rf7+ {[%clk 0:00:12]}  Ke8 {[%clk 0:00:30]} 45. Rf6 {[%clk 0:00:09]}  Ke7 {[%clk 0:00:28]} 46. Rf7+ {[%clk 0:00:10]}  Kd8 {[%clk 0:00:29]} 47. Kb4 {[%clk 0:00:09]}  Bd1 {[%clk 0:00:27]} 48. a4 {[%clk 0:00:09]}  Rb2 {[%clk 0:00:27]} 49. Kc5 {[%clk 0:00:09]}  Rxb3 {[%clk 0:00:28]} 50. Kd6 {[%clk 0:00:09]}  Rb6+ {[%clk 0:00:25]} 51. Nc6+ {[%clk 0:00:09]}  Ke8 {[%clk 0:00:26]} 52. Ra7 {[%clk 0:00:10]}  f4 {[%clk 0:00:25]} 53. a5 {[%clk 0:00:10]}  Rb1 {[%clk 0:00:23]} 54. Kxe6 {[%clk 0:00:10]}  Bg4+ {[%clk 0:00:23]} 55. Kf6 {[%clk 0:00:11]}  f3 {[%clk 0:00:24]} 56. Ra8+ {[%clk 0:00:11]}  Kd7 {[%clk 0:00:24]} 57. Ne5+ {[%clk 0:00:11]}  Kc7 {[%clk 0:00:23]} 58. Nxg4 {[%clk 0:00:09]}  Rg1 {[%clk 0:00:18]} 59. Kf5 {[%clk 0:00:08]}  f2 {[%clk 0:00:16]} 60. Nxf2 {[%clk 0:00:08]}  Rf1 {[%clk 0:00:17]} 61. Ke5 {[%clk 0:00:07]}  Rxf2 {[%clk 0:00:17]} 62. Kxd5 {[%clk 0:00:07]}  Ra2 {[%clk 0:00:17]} 63. Ra6 {[%clk 0:00:07]}  Kb7 {[%clk 0:00:17]} 64. Rb6+ {[%clk 0:00:07]}  Kc7 {[%clk 0:00:17]} 65. Rb5 {[%clk 0:00:07]}  Ra1 {[%clk 0:00:17]} 66. Rc5+ {[%clk 0:00:07]}  Kd7 {[%clk 0:00:17]} 67. Rb5 {[%clk 0:00:05]}  Kc7 {[%clk 0:00:16]} 68. Ke6 {[%clk 0:00:06]}  Re1+ {[%clk 0:00:16]} 69. Re5 {[%clk 0:00:06]}  Rd1 {[%clk 0:00:17]} 70. Rc5+ {[%clk 0:00:06]}  Kd8 {[%clk 0:00:17]} 71. d5 {[%clk 0:00:07]}  Rh1 {[%clk 0:00:15]} 72. Rb5 {[%clk 0:00:07]}  Rh6+ {[%clk 0:00:15]} 73. Ke5 {[%clk 0:00:07]}  Kc7 {[%clk 0:00:16]} 74. Kd4 {[%clk 0:00:07]}  Rh1 {[%clk 0:00:15]} 75. Rb6 {[%clk 0:00:05]}  Ra1 {[%clk 0:00:15]} 76. Rc6+ {[%clk 0:00:05]}  Kd7 {[%clk 0:00:12]} 77. a6 {[%clk 0:00:05]}  Rd1+ {[%clk 0:00:12]} 78. Kc5 {[%clk 0:00:06]}  Rc1+ {[%clk 0:00:12]} 79. Kb6 {[%clk 0:00:06]}  Rd1 {[%clk 0:00:13]} 80. a7 {[%clk 0:00:05]}  Rb1+ {[%clk 0:00:13]} 81. Ka6 {[%clk 0:00:05]}  Ra1+ {[%clk 0:00:13]} 82. Kb7 {[%clk 0:00:06]}  Rb1+ {[%clk 0:00:11]} 83. Rb6 {[%clk 0:00:06]} 1-0